[Event "NJSK 2023 Meisjes B"]
[Site "Almelo, Netherlands"]
[Date "2023.05.04"]
[Round "5.3"]
[White "Tangarife Ramirez, Katja"]
[Black "Oostinga, Elisa"]
[Result "0-1"]
[TimeControl "90min/40moves + 30min + 30sec/move"]
[WhiteElo "1667"]
[BlackElo "1034"]

1. d4 {[%clk 01:30:58]} {[%emt 00:00:01]} d5 {[%clk 01:30:53]} {[%emt
00:00:07]} 2. Nf3 {[%clk 01:31:25]} {[%emt 00:00:03]} c6 {[%clk 01:30:44]}
{[%emt 00:00:39]} 3. c3 {[%clk 01:31:33]} {[%emt 00:00:22]} Nf6 {[%clk
01:29:19]} {[%emt 00:01:55]} 4. e3 {[%clk 01:31:53]} {[%emt 00:00:11]} Bf5
{[%clk 01:27:16]} {[%emt 00:02:32]} 5. Bd3 {[%clk 01:31:59]} {[%emt 00:00:24]}
Bxd3 {[%clk 01:26:28]} {[%emt 00:01:17]} 6. Qxd3 {[%clk 01:32:20]} {[%emt
00:00:10]} e6 {[%clk 01:25:26]} {[%emt 00:01:33]} 7. Nbd2 {[%clk 01:31:37]}
{[%emt 00:01:13]} Be7 {[%clk 01:21:03]} {[%emt 00:04:52]} 8. e4 {[%clk
01:28:08]} {[%emt 00:03:59]} c5 {[%clk 01:15:59]} {[%emt 00:05:35]} 9. O-O
{[%clk 01:12:56]} {[%emt 00:15:42]} O-O {[%clk 01:14:16]} {[%emt 00:02:13]} 10.
Re1 {[%clk 01:10:14]} {[%emt 00:03:12]} Nc6 {[%clk 01:12:02]} {[%emt 00:02:44]}
11. e5 {[%clk 01:07:33]} {[%emt 00:03:11]} Nd7 {[%clk 01:11:39]} {[%emt
00:00:53]} 12. a3 {[%clk 01:02:22]} {[%emt 00:05:42]} h6 {[%clk 01:01:38]}
{[%emt 00:10:31]} 13. Nf1 {[%clk 01:01:30]} {[%emt 00:01:22]} Qb6 {[%clk
00:51:34]} {[%emt 00:10:34]} 14. Rb1 {[%clk 00:57:08]} {[%emt 00:04:52]} Rfe8
{[%clk 00:45:30]} {[%emt 00:06:34]} 15. Be3 {[%clk 00:52:17]} {[%emt 00:05:21]}
Nf8 {[%clk 00:42:35]} {[%emt 00:03:25]} 16. N3d2 {[%clk 00:50:51]} {[%emt
00:01:56]} Rac8 {[%clk 00:38:39]} {[%emt 00:04:26]} 17. f4 {[%clk 00:49:41]}
{[%emt 00:01:40]} f6 {[%clk 00:35:05]} {[%emt 00:04:04]} 18. exf6 {[%clk
00:47:20]} {[%emt 00:02:50]} c4 {[%clk 00:33:41]} {[%emt 00:01:55]} 19. f7+
{[%clk 00:43:05]} {[%emt 00:04:44]} Kxf7 {[%clk 00:34:00]} {[%emt 00:00:11]} 20.
Qe2 {[%clk 00:43:15]} {[%emt 00:00:20]} Qc7 {[%clk 00:30:59]} {[%emt 00:03:30]}
21. Qh5+ {[%clk 00:38:25]} {[%emt 00:05:20]} Kg8 {[%clk 00:30:48]} {[%emt
00:00:41]} 22. Nf3 {[%clk 00:35:36]} {[%emt 00:03:19]} Bf6 {[%clk 00:28:33]}
{[%emt 00:02:45]} 23. Ne5 {[%clk 00:33:33]} {[%emt 00:02:34]} Bxe5 {[%clk
00:26:34]} {[%emt 00:02:28]} 24. fxe5 {[%clk 00:33:40]} {[%emt 00:00:23]} Qf7
{[%clk 00:25:08]} {[%emt 00:01:56]} 25. Qg4 {[%clk 00:29:26]} {[%emt 00:04:43]}
Qg6 {[%clk 00:22:01]} {[%emt 00:03:38]} 26. Qf3 {[%clk 00:28:30]} {[%emt
00:01:26]} Nd7 {[%clk 00:21:12]} {[%emt 00:01:19]} 27. Nd2 {[%clk 00:25:52]}
{[%emt 00:03:09]} Rf8 {[%clk 00:20:44]} {[%emt 00:00:58]} 28. Qe2 {[%clk
00:25:42]} {[%emt 00:00:40]} Ne7 {[%clk 00:18:59]} {[%emt 00:02:15]} 29. a4
{[%clk 00:18:10]} {[%emt 00:08:02]} a6 {[%clk 00:18:08]} {[%emt 00:01:20]} 30.
b3 {[%clk 00:16:22]} {[%emt 00:02:18]} b5 {[%clk 00:17:21]} {[%emt 00:01:17]}
31. bxc4 {[%clk 00:15:15]} {[%emt 00:01:38]} bxc4 {[%clk 00:16:17]} {[%emt
00:01:35]} 32. Rb7 {[%clk 00:14:45]} {[%emt 00:01:00]} Rfd8 {[%clk 00:15:06]}
{[%emt 00:01:40]} 33. Nf3 {[%clk 00:12:42]} {[%emt 00:02:32]} Nf5 {[%clk
00:12:54]} {[%emt 00:02:42]} 34. Qf2 {[%clk 00:08:48]} {[%emt 00:04:24]} Rb8
{[%clk 00:09:56]} {[%emt 00:03:29]} 35. Qb2 {[%clk 00:06:56]} {[%emt 00:02:21]}
Ne7 {[%clk 00:06:30]} {[%emt 00:03:56]} 36. Bf2 {[%clk 00:06:19]} {[%emt
00:01:07]} Qf7 {[%clk 00:05:10]} {[%emt 00:01:50]} 37. Rf1 {[%clk 00:06:18]}
{[%emt 00:00:31]} Nc6 {[%clk 00:04:32]} {[%emt 00:01:09]} 38. Bh4 {[%clk
00:05:53]} {[%emt 00:00:54]} Rdc8 {[%clk 00:03:52]} {[%emt 00:01:10]} 39. Rb1
{[%clk 00:04:27]} {[%emt 00:01:57]} Rxb7 {[%clk 00:03:15]} {[%emt 00:01:08]} 40.
Qxb7 {[%clk 00:04:03]} {[%emt 00:00:54]} Rb8 {[%clk 00:03:32]} {[%emt
00:00:13]} 41. Qxc6 {[%clk 00:03:00]} {[%emt 00:01:32]} Rxb1+ {[%clk 00:03:48]}
{[%emt 00:00:14]} 42. Kf2 {[%clk 00:02:59]} {[%emt 00:00:30]} Rb6 {[%clk
00:03:01]} {[%emt 00:01:17]} 43. Qc8+ {[%clk 00:00:47]} {[%emt 00:02:42]} Kh7
{[%clk 00:03:15]} {[%emt 00:00:16]} 44. a5 {[%clk 00:00:34]} {[%emt 00:00:42]}
Rb2+ {[%clk 00:02:58]} {[%emt 00:00:47]} 45. Kf1 {[%clk 00:29:10]} {[%emt
00:01:54]} Nb8 {[%clk 00:32:33]} {[%emt 00:00:55]} 46. Qc5 {[%clk 00:29:03]}
{[%emt 00:00:37]} Qg6 {[%clk 00:31:33]} {[%emt 00:01:29]} 47. Bg3 {[%clk
00:28:51]} {[%emt 00:00:42]} Qd3+ {[%clk 00:31:26]} {[%emt 00:00:38]} 48. Kg1
{[%clk 00:28:43]} {[%emt 00:00:38]} Qe3+ {[%clk 00:31:16]} {[%emt 00:00:40]}
0-1

[Event "NJSK 2023 Meisjes B"]
[Site "Almelo, Netherlands"]
[Date "2023.05.04"]
[Round "5.4"]
[White "Zahirna, Iryna"]
[Black "Ganeshram, Nirupa"]
[Result "0-1"]
[TimeControl "90min/40moves + 30min + 30sec/move"]
[WhiteElo "1594"]
[BlackElo "1629"]

1. c4 {[%clk 01:30:58]} {[%emt 00:00:01]} e5 {[%clk 01:30:56]} {[%emt
00:00:04]} 2. g3 {[%clk 01:31:23]} {[%emt 00:00:06]} Nf6 {[%clk 01:31:09]}
{[%emt 00:00:18]} 3. Bg2 {[%clk 01:30:58]} {[%emt 00:00:54]} Nc6 {[%clk
01:30:58]} {[%emt 00:00:41]} 4. Nc3 {[%clk 01:30:29]} {[%emt 00:00:59]} Bc5
{[%clk 01:29:36]} {[%emt 00:01:52]} 5. e3 {[%clk 01:28:37]} {[%emt 00:02:22]}
O-O {[%clk 01:24:42]} {[%emt 00:05:23]} 6. Nge2 {[%clk 01:26:56]} {[%emt
00:02:12]} Re8 {[%clk 01:14:51]} {[%emt 00:10:21]} 7. O-O {[%clk 01:24:10]}
{[%emt 00:03:14]} e4 {[%clk 01:07:15]} {[%emt 00:08:07]} 8. Qc2 {[%clk
01:08:46]} {[%emt 00:15:55]} Qe7 {[%clk 00:55:12]} {[%emt 00:12:34]} 9. Nf4
{[%clk 00:48:57]} {[%emt 00:20:18]} Nb4 {[%clk 00:50:47]} {[%emt 00:04:54]} 10.
Qb1 {[%clk 00:48:56]} {[%emt 00:00:31]} c6 {[%clk 00:49:22]} {[%emt 00:01:56]}
11. a3 {[%clk 00:49:07]} {[%emt 00:00:20]} Na6 {[%clk 00:49:34]} {[%emt
00:00:17]} 12. b4 {[%clk 00:49:10]} {[%emt 00:00:26]} Bb6 {[%clk 00:43:22]}
{[%emt 00:06:42]} 13. c5 {[%clk 00:44:25]} {[%emt 00:05:15]} Bc7 {[%clk
00:43:42]} {[%emt 00:00:10]} 14. d3 {[%clk 00:37:11]} {[%emt 00:07:44]} exd3
{[%clk 00:39:23]} {[%emt 00:04:49]} 15. Qxd3 {[%clk 00:37:06]} {[%emt
00:00:36]} d6 {[%clk 00:33:38]} {[%emt 00:06:15]} 16. cxd6 {[%clk 00:35:34]}
{[%emt 00:02:01]} Bxd6 {[%clk 00:31:22]} {[%emt 00:02:46]} 17. Bb2 {[%clk
00:30:21]} {[%emt 00:05:44]} Be6 {[%clk 00:26:52]} {[%emt 00:05:00]} 18. Bxc6
{[%clk 00:29:40]} {[%emt 00:01:11]} Nxb4 {[%clk 00:25:28]} {[%emt 00:01:54]} 19.
axb4 {[%clk 00:28:26]} {[%emt 00:01:44]} bxc6 {[%clk 00:24:19]} {[%emt
00:01:39]} 20. Nxe6 {[%clk 00:26:17]} {[%emt 00:02:39]} Qxe6 {[%clk 00:21:11]}
{[%emt 00:03:38]} 21. Qd4 {[%clk 00:19:58]} {[%emt 00:06:48]} Qh3 {[%clk
00:13:49]} {[%emt 00:07:52]} 22. Qh4 {[%clk 00:14:02]} {[%emt 00:06:25]} Qxh4
{[%clk 00:13:04]} {[%emt 00:01:15]} 23. gxh4 {[%clk 00:14:31]} {[%emt
00:00:02]} Bxb4 {[%clk 00:13:18]} {[%emt 00:00:16]} 24. Rfd1 {[%clk 00:13:32]}
{[%emt 00:01:29]} a5 {[%clk 00:11:20]} {[%emt 00:02:29]} 25. Ne2 {[%clk
00:12:40]} {[%emt 00:01:21]} Red8 {[%clk 00:09:31]} {[%emt 00:02:20]} 26. Rdc1
{[%clk 00:10:23]} {[%emt 00:02:47]} c5 {[%clk 00:08:29]} {[%emt 00:01:32]} 27.
Ba3 {[%clk 00:09:09]} {[%emt 00:01:44]} Rdb8 {[%clk 00:02:37]} {[%emt
00:06:22]} 28. Nf4 {[%clk 00:07:41]} {[%emt 00:01:58]} Ne4 {[%clk 00:02:40]}
{[%emt 00:00:26]} 29. Nd3 {[%clk 00:06:51]} {[%emt 00:01:20]} Bxa3 {[%clk
00:01:35]} {[%emt 00:01:36]} 30. Rxa3 {[%clk 00:07:07]} {[%emt 00:00:14]} Rc8
{[%clk 00:01:57]} {[%emt 00:00:08]} 31. f3 {[%clk 00:06:50]} {[%emt 00:00:48]}
Nd2 {[%clk 00:02:07]} {[%emt 00:00:21]} 32. Kf2 {[%clk 00:06:48]} {[%emt
00:00:32]} c4 {[%clk 00:02:17]} {[%emt 00:00:20]} 33. Nb2 {[%clk 00:05:56]}
{[%emt 00:01:22]} Rab8 {[%clk 00:01:39]} {[%emt 00:01:08]} 34. Ra2 {[%clk
00:05:30]} {[%emt 00:00:56]} Nb3 {[%clk 00:01:40]} {[%emt 00:00:29]} 35. Rc2
{[%clk 00:05:25]} {[%emt 00:00:35]} Rb4 {[%clk 00:01:25]} {[%emt 00:00:45]} 36.
Nd3 {[%clk 00:05:23]} {[%emt 00:00:31]} Rbb8 {[%clk 00:01:16]} {[%emt
00:00:39]} 37. Nc1 {[%clk 00:05:19]} {[%emt 00:00:34]} Nxc1 {[%clk 00:01:29]}
{[%emt 00:00:17]} 38. Rxc1 {[%clk 00:05:48]} {[%emt 00:00:01]} Ra8 {[%clk
00:01:58]} {[%emt 00:00:01]} 39. Rac2 {[%clk 00:05:45]} {[%emt 00:00:33]} a4
{[%clk 00:02:03]} {[%emt 00:00:26]} 40. Rxc4 {[%clk 00:05:56]} {[%emt
00:00:18]} Rxc4 {[%clk 00:01:41]} {[%emt 00:00:52]} 41. Rxc4 {[%clk 00:06:24]}
{[%emt 00:00:02]} a3 {[%clk 00:02:04]} {[%emt 00:00:07]} 42. Rc1 {[%clk
00:06:45]} {[%emt 00:00:09]} a2 {[%clk 00:02:03]} {[%emt 00:00:32]} 43. Ra1
{[%clk 00:07:13]} {[%emt 00:00:01]} Kf8 {[%clk 00:02:30]} {[%emt 00:00:03]} 44.
Ke2 {[%clk 00:07:35]} {[%emt 00:00:08]} Ke7 {[%emt 00:00:06]} 45. Kd2 {[%clk
00:08:01]} {[%emt 00:00:03]} Kf6 {[%clk 00:03:15]} {[%emt 00:00:09]} 46. e4
{[%clk 00:07:58]} {[%emt 00:00:33]} Ke5 {[%clk 00:03:37]} {[%emt 00:00:09]} 47.
Ke3 {[%clk 00:08:11]} {[%emt 00:00:16]} Ra3+ {[%clk 00:03:51]} {[%emt
00:00:15]} 48. Ke2 {[%clk 00:07:54]} {[%emt 00:00:47]} Kf4 {[%clk 00:04:14]}
{[%emt 00:00:08]} 49. Kd2 {[%clk 00:07:36]} {[%emt 00:00:48]} Kxf3 {[%clk
00:04:21]} {[%emt 00:00:23]} 50. Kc2 {[%clk 00:07:26]} {[%emt 00:00:40]} Kxe4
{[%clk 00:04:35]} {[%emt 00:00:16]} 51. Kb2 {[%clk 00:07:34]} {[%emt 00:00:22]}
Ra6 {[%clk 00:05:00]} {[%emt 00:00:06]} 52. h5 {[%clk 00:07:36]} {[%emt
00:00:27]} h6 {[%clk 00:04:54]} {[%emt 00:00:36]} 53. Re1+ {[%clk 00:07:51]}
{[%emt 00:00:15]} Kd3 {[%clk 00:05:08]} {[%emt 00:00:15]} 54. Ka1 {[%clk
00:07:49]} {[%emt 00:00:32]} Ra7 {[%clk 00:04:04]} {[%emt 00:01:34]} 55. h4
{[%clk 00:08:05]} {[%emt 00:00:14]} f5 {[%clk 00:04:18]} {[%emt 00:00:16]} 56.
Rd1+ {[%clk 00:08:22]} {[%emt 00:00:13]} Ke2 {[%clk 00:04:40]} {[%emt
00:00:08]} 57. Rc1 {[%clk 00:08:17]} {[%emt 00:00:35]} f4 {[%clk 00:04:27]}
{[%emt 00:00:43]} 58. Rc2+ {[%clk 00:08:39]} {[%emt 00:00:07]} Kf3 {[%clk
00:04:52]} {[%emt 00:00:05]} 59. Rc1 {[%clk 00:08:09]} {[%emt 00:00:59]} Kg3
{[%clk 00:05:03]} {[%emt 00:00:19]} 60. Rg1+ {[%clk 00:08:17]} {[%emt
00:00:22]} Kf2 {[%clk 00:05:24]} {[%emt 00:00:09]} 61. Rc1 {[%clk 00:08:22]}
{[%emt 00:00:26]} f3 {[%clk 00:05:49]} {[%emt 00:00:05]} 62. Rc3 {[%clk
00:08:32]} {[%emt 00:00:19]} Kg2 {[%clk 00:05:55]} {[%emt 00:00:24]} 0-1

[Event "NJSK 2023 Meisjes B"]
[Site "Almelo, Netherlands"]
[Date "2023.05.04"]
[Round "5.5"]
[White "Luijkx, Dagmar"]
[Black "Yildirim, Azra"]
[Result "1/2-1/2"]
[TimeControl "90min/40moves + 30min + 30sec/move"]
[WhiteElo "1559"]
[BlackElo "1275"]

1. d4 {[%clk 01:30:58]} {[%emt 00:00:01]} d5 {[%clk 01:30:56]} {[%emt
00:00:05]} 2. Bf4 {[%clk 01:31:23]} {[%emt 00:00:05]} Bf5 {[%clk 01:31:00]}
{[%emt 00:00:26]} 3. e3 {[%clk 01:31:36]} {[%emt 00:00:17]} e6 {[%clk
01:30:50]} {[%emt 00:00:40]} 4. Nf3 {[%clk 01:31:33]} {[%emt 00:00:32]} c5
{[%clk 01:28:53]} {[%emt 00:02:28]} 5. c3 {[%clk 01:31:44]} {[%emt 00:00:19]}
Nc6 {[%clk 01:28:31]} {[%emt 00:00:51]} 6. Nbd2 {[%clk 01:31:05]} {[%emt
00:01:09]} Nf6 {[%clk 01:26:45]} {[%emt 00:02:16]} 7. Qb3 {[%clk 01:30:20]}
{[%emt 00:01:15]} Qb6 {[%clk 01:24:21]} {[%emt 00:02:54]} 8. Qxb6 {[%clk
01:30:15]} {[%emt 00:00:34]} axb6 {[%clk 01:24:43]} {[%emt 00:00:09]} 9. Bb5
{[%clk 01:29:56]} {[%emt 00:00:49]} Be7 {[%clk 01:18:43]} {[%emt 00:06:30]} 10.
O-O {[%clk 01:27:34]} {[%emt 00:02:51]} O-O {[%clk 01:17:57]} {[%emt 00:01:16]}
11. h3 {[%clk 01:24:36]} {[%emt 00:03:29]} Ne4 {[%clk 01:13:06]} {[%emt
00:05:22]} 12. Nxe4 {[%clk 01:16:39]} {[%emt 00:08:26]} Bxe4 {[%clk 01:12:52]}
{[%emt 00:00:44]} 13. Bxc6 {[%clk 01:11:30]} {[%emt 00:05:39]} bxc6 {[%clk
01:12:29]} {[%emt 00:00:53]} 14. Ne5 {[%clk 01:10:00]} {[%emt 00:02:00]} Rfc8
{[%clk 01:09:00]} {[%emt 00:04:00]} 15. dxc5 {[%clk 01:04:36]} {[%emt
00:05:54]} bxc5 {[%clk 01:05:38]} {[%emt 00:03:52]} 16. f3 {[%clk 01:03:01]}
{[%emt 00:02:04]} Bg6 {[%clk 01:01:53]} {[%emt 00:04:16]} 17. Nxg6 {[%clk
01:02:24]} {[%emt 00:01:00]} hxg6 {[%clk 01:02:10]} {[%emt 00:00:20]} 18. Be5
{[%clk 00:56:12]} {[%emt 00:06:42]} f6 {[%clk 00:58:58]} {[%emt 00:03:42]} 19.
Bh2 {[%clk 00:52:45]} {[%emt 00:03:56]} Rd8 {[%clk 00:55:58]} {[%emt 00:03:30]}
20. e4 {[%clk 00:46:54]} {[%emt 00:06:21]} e5 {[%clk 00:51:48]} {[%emt
00:04:40]} 21. f4 {[%clk 00:45:24]} {[%emt 00:02:00]} exf4 {[%clk 00:47:26]}
{[%emt 00:04:52]} 22. Rxf4 {[%clk 00:43:47]} {[%emt 00:02:07]} Bd6 {[%clk
00:47:45]} {[%emt 00:00:11]} 23. Rg4 {[%clk 00:41:55]} {[%emt 00:02:22]} Bxh2+
{[%clk 00:47:55]} {[%emt 00:00:20]} 24. Kxh2 {[%clk 00:42:23]} {[%emt
00:00:02]} dxe4 {[%clk 00:48:06]} {[%emt 00:00:19]} 25. Rxe4 {[%clk 00:42:06]}
{[%emt 00:00:47]} Rd2 {[%clk 00:47:10]} {[%emt 00:01:27]} 26. Rc4 {[%clk
00:41:13]} {[%emt 00:01:17]} Rxb2 {[%clk 00:45:26]} {[%emt 00:02:20]} 27. Rxc5
{[%clk 00:39:23]} {[%emt 00:02:20]} Raxa2 {[%clk 00:39:57]} {[%emt 00:06:00]}
28. Rxa2 {[%clk 00:39:05]} {[%emt 00:00:48]} Rxa2 {[%clk 00:40:21]} {[%emt
00:00:06]} 29. Rxc6 {[%clk 00:39:16]} {[%emt 00:00:18]} Rc2 {[%clk 00:40:18]}
{[%emt 00:00:33]} 30. c4 {[%clk 00:38:20]} {[%emt 00:01:27]} g5 {[%clk
00:38:01]} {[%emt 00:02:47]} 31. Rc8+ {[%clk 00:37:30]} {[%emt 00:01:19]} Kf7
{[%clk 00:37:44]} {[%emt 00:00:48]} 32. c5 {[%clk 00:36:40]} {[%emt 00:01:20]}
Ke7 {[%clk 00:36:49]} {[%emt 00:01:24]} 33. c6 {[%clk 00:31:29]} {[%emt
00:05:41]} Kd6 {[%clk 00:35:35]} {[%emt 00:01:44]} 34. Rd8+ {[%clk 00:29:33]}
{[%emt 00:02:25]} Kc7 {[%clk 00:34:22]} {[%emt 00:01:44]} 35. Rd7+ {[%clk
00:25:32]} {[%emt 00:04:31]} Kxc6 {[%clk 00:34:14]} {[%emt 00:00:38]} 36. Rxg7
{[%clk 00:25:47]} {[%emt 00:00:14]} Kd6 {[%clk 00:34:19]} {[%emt 00:00:26]} 37.
Kg3 {[%clk 00:24:24]} {[%emt 00:01:53]} Ke5 {[%emt 00:00:07]} 1/2-1/2

[Event "NJSK 2023 Meisjes B"]
[Site "Almelo, Netherlands"]
[Date "2023.05.04"]
[Round "5.6"]
[White "Kulikova, Polina"]
[Black "Wortman, Manixia"]
[Result "1/2-1/2"]
[TimeControl "90min/40moves + 30min + 30sec/move"]
[WhiteElo "1589"]
[BlackElo "1493"]

1. d4 {[%clk 01:30:58]} Nf6 {[%clk 01:30:55]} {[%emt 00:00:05]} 2. c4 {[%clk
01:31:26]} {[%emt 00:00:03]} e6 {[%clk 01:31:15]} {[%emt 00:00:09]} 3. Nf3
{[%clk 01:31:48]} {[%emt 00:00:08]} b6 {[%clk 01:31:19]} {[%emt 00:00:26]} 4.
Bg5 {[%clk 01:31:54]} {[%emt 00:00:24]} Be7 {[%clk 01:31:23]} {[%emt 00:00:26]}
5. Nc3 {[%clk 01:31:54]} {[%emt 00:00:29]} Bb7 {[%clk 01:22:55]} {[%emt
00:08:58]} 6. Qc2 {[%clk 01:31:31]} {[%emt 00:00:53]} d5 {[%clk 01:15:47]}
{[%emt 00:07:39]} 7. e3 {[%clk 01:30:53]} {[%emt 00:01:08]} h6 {[%clk
01:13:40]} {[%emt 00:02:37]} 8. Bh4 {[%clk 01:26:19]} {[%emt 00:05:04]} Nbd7
{[%clk 01:11:26]} {[%emt 00:02:45]} 9. cxd5 {[%clk 01:22:58]} {[%emt 00:03:51]}
Nxd5 {[%clk 01:09:18]} {[%emt 00:02:38]} 10. Nxd5 {[%clk 01:20:50]} {[%emt
00:02:38]} Bxd5 {[%clk 01:05:17]} {[%emt 00:04:31]} 11. Bxe7 {[%clk 01:20:42]}
{[%emt 00:00:37]} Qxe7 {[%clk 01:02:28]} {[%emt 00:03:20]} 12. Qxc7 {[%clk
01:19:30]} {[%emt 00:01:41]} Bxf3 {[%clk 01:02:34]} {[%emt 00:00:24]} 13. gxf3
{[%clk 01:19:35]} {[%emt 00:00:26]} Qb4+ {[%clk 01:02:12]} {[%emt 00:00:53]} 14.
Qc3 {[%clk 01:19:52]} {[%emt 00:00:13]} Qxc3+ {[%clk 00:53:55]} {[%emt
00:08:47]} 15. bxc3 {[%clk 01:20:08]} {[%emt 00:00:14]} Rc8 {[%clk 00:49:19]}
{[%emt 00:05:06]} 16. Kd2 {[%clk 01:15:29]} {[%emt 00:05:09]} Ke7 {[%clk
00:43:07]} {[%emt 00:06:42]} 17. Ba6 {[%clk 01:13:27]} {[%emt 00:02:32]} Rc7
{[%clk 00:41:32]} {[%emt 00:02:06]} 18. Rac1 {[%clk 01:12:44]} {[%emt
00:01:12]} Rd8 {[%clk 00:40:31]} {[%emt 00:01:31]} 19. Ke2 {[%clk 01:11:19]}
{[%emt 00:01:54]} Nb8 {[%clk 00:36:01]} {[%emt 00:05:02]} 20. Bb5 {[%clk
00:59:34]} {[%emt 00:12:13]} a6 {[%clk 00:26:26]} {[%emt 00:10:07]} 21. Bd3
{[%clk 00:58:12]} {[%emt 00:01:51]} Rd5 {[%clk 00:24:53]} {[%emt 00:02:03]} 22.
Rc2 {[%clk 00:51:24]} {[%emt 00:07:18]} Ra5 {[%clk 00:18:38]} {[%emt 00:06:45]}
23. e4 {[%clk 00:42:35]} {[%emt 00:09:19]} Nd7 {[%clk 00:15:39]} {[%emt
00:03:29]} 24. Rg1 {[%clk 00:30:54]} {[%emt 00:12:11]} g6 {[%clk 00:13:30]}
{[%emt 00:02:38]} 25. e5 {[%clk 00:25:43]} {[%emt 00:05:41]} Rd5 {[%clk
00:11:19]} {[%emt 00:02:40]} 26. f4 {[%clk 00:21:14]} {[%emt 00:05:00]} Nb8
{[%clk 00:09:30]} {[%emt 00:02:20]} 27. h4 {[%clk 00:19:41]} {[%emt 00:02:03]}
h5 {[%clk 00:08:42]} {[%emt 00:01:17]} 28. Kd2 {[%clk 00:19:21]} {[%emt
00:00:50]} b5 {[%clk 00:08:19]} {[%emt 00:00:54]} 29. Rb1 {[%clk 00:18:30]}
{[%emt 00:01:19]} Nc6 {[%clk 00:07:42]} {[%emt 00:01:09]} 30. Be4 {[%clk
00:15:47]} {[%emt 00:03:13]} 1/2-1/2